Workbook

Sheet SÚHRN ROZPOČTU
B2: SÚHRNNÁ ZOSTAVA ROZPOČTU | I2: =YEAR(TODAY()) -> 2019
B3: Názov spoločnosti
B4: Sivé bunky sa vypočítajú automaticky a vo všeobecnosti by sa do nich nemalo zasahovať.
B5: Súhrn zisku a straty | C5: Skutočné hodnoty za máj | D5: Ciele na máj | E5: Mesačná odchýlka | F5: Skutočné hodnoty za tento rok | G5: Ciele na tento rok | H5: Odchýlka za tento rok | I5: Poznámky
B6: Tržby | C6: 1,200,000.00 EUR | D6: 1,100,000.00 EUR | E6: =C6-D6 -> 100,000.00 EUR | F6: 6,200,000.00 EUR | G6: 6,000,000.00 EUR | H6: =F6-G6 -> 200,000.00 EUR | I6: Naše cieľové tržby na máj sme prekročili o 9 % z dôvodu silnejšieho výkonu v západnej oblasti.
B7: Hrubá marža | C7: 150,000.00 EUR | D7: 160,000.00 EUR | E7: =C7-D7 -> -10,000.00 EUR | F7: 640,000.00 EUR | G7: 750,000.00 EUR | H7: =F7-G7 -> -110,000.00 EUR
B8: Percentuálna hodnota hrubej marže | C8: =IF(C6=0,0,C7/C6) -> 12.5% | D8: =IF(D6=0,0,D7/D6) -> 14.5% | E8: =C8-D8 -> -2.0% | F8: =IF(F6=0,0,F7/F6) -> 10.3% | G8: =IF(G6=0,0,G7/G6) -> 12.5% | H8: =F8-G8 -> -2.2%
B9: Predaj nových produktov | C9: 200,000.00 EUR | D9: 150,000.00 EUR | E9: =C9-D9 -> 50,000.00 EUR | F9: 900,000.00 EUR | G9: 750,000.00 EUR | H9: =F9-G9 -> 150,000.00 EUR
B10: Rozpis regionálnych predajov:
B11: Severovýchodná oblasť | C11: 400,000.00 EUR | D11: 400,000.00 EUR | E11: =C11-D11 -> 0.00 EUR | F11: 2,200,000.00 EUR | G11: 2,000,000.00 EUR | H11: =F11-G11 -> 200,000.00 EUR
B12: Centrálna oblasť | C12: 400,000.00 EUR | D12: 400,000.00 EUR | E12: =C12-D12 -> 0.00 EUR | F12: 2,400,000.00 EUR | G12: 2,000,000.00 EUR | H12: =F12-G12 -> 400,000.00 EUR
B13: Západný oblasť | C13: 400,000.00 EUR | D13: 300,000.00 EUR | E13: =C13-D13 -> 100,000.00 EUR | F13: 1,600,000.00 EUR | G13: 2,000,000.00 EUR | H13: =F13-G13 -> -400,000.00 EUR
B14: Výdavky a marža:
B15: Predajné, všeobecné a administratívne výdavky | C15: 100,000.00 EUR | D15: 120,000.00 EUR | E15: =D15-C15 -> 20,000.00 EUR | F15: 500,000.00 EUR | G15: 600,000.00 EUR | H15: =G15-F15 -> 100,000.00 EUR
B16: Prevádzkový zisk (strata) pred zdanením | C16: 50,000.00 EUR | D16: 40,000.00 EUR | E16: =C16-D16 -> 10,000.00 EUR | F16: 140,000.00 EUR | G16: 150,000.00 EUR | H16: =F16-G16 -> -10,000.00 EUR
B17: Prevádzková marža | C17: =IF(C6=0,0,C16/C6) -> 4% | D17: =IF(D6=0,0,D16/D6) -> 4% | E17: =C17-D17 -> 1% | F17: =IF(F6=0,0,F16/F6) -> 2% | G17: =IF(G6=0,0,G16/G6) -> 3% | H17: =F17-G17 -> -0%
B19: Súvahový súhrn | C19: Skutočné hodnoty za máj | D19: Ciele na máj | E19: Mesačná odchýlka | F19: Skutočné hodnoty za tento rok | G19: Ciele na tento rok | H19: Odchýlka za tento rok | I19: Poznámky
B20: Peňažný tok na konci obdobia | C20: 35,000.00 EUR | D20: 50,000.00 EUR | E20: =C20-D20 -> -15,000.00 EUR | F20: 35,000.00 EUR | G20: 50,000.00 EUR | H20: =F20-G20 -> -15,000.00 EUR | I20: Rozdiel v peňažnom toku bol spôsobený hotovostným urovnaním právneho sporu so spoločnosťou Názov 8. mája.
B21: Pohľadávky | C21: 20,000.00 EUR | D21: 22,000.00 EUR | E21: -2,000.00 EUR | F21: 20,000.00 EUR | G21: 22,000.00 EUR | H21: -2,000.00 EUR
B22: Inventár | C22: 25,000.00 EUR | D22: 30,000.00 EUR | E22: -5,000.00 EUR | F22: 25,000.00 EUR | G22: 30,000.00 EUR | H22: -5,000.00 EUR
B23: Celkové likvidné aktíva | C23: 75,000.00 EUR | D23: 90,000.00 EUR | E23: -15,000.00 EUR | F23: 75,000.00 EUR | G23: 90,000.00 EUR | H23: -15,000.00 EUR
B24: Aktíva požadované dlhovými záväzkami | C24: 25,000.00 EUR | D24: 25,000.00 EUR | E24: 0.00 EUR | F24: 25,000.00 EUR | G24: 25,000.00 EUR | H24: 0.00 EUR
B25: Rezerva dlhových záväzkov | C25: =C23-C24 -> 50,000.00 EUR | D25: =D23-D24 -> 65,000.00 EUR | E25: -15,000.00 EUR | F25: =F23-F24 -> 50,000.00 EUR | G25: =G23-G24 -> 65,000.00 EUR | H25: -15,000.00 EUR
B26: Iné položky súvahy:
B27: Nehnuteľnosti, prevádzka a vybavenie | C27: 80,000.00 EUR | D27: 78,000.00 EUR | E27: =C27-D27 -> 2,000.00 EUR | F27: 80,000.00 EUR | G27: 78,000.00 EUR | H27: =F27-G27 -> 2,000.00 EUR | I27: Rozdiel v dôsledku kúpy nového trhacieho stroja v prevádzke B.
B28: Záväzky | C28: 60,000.00 EUR | D28: 60,000.00 EUR | E28: =D28-C28 -> 0.00 EUR | F28: 60,000.00 EUR | G28: 60,000.00 EUR | H28: =F28-G28 -> 0.00 EUR
B29: Dlhodobé záväzky | C29: 30,000.00 EUR | D29: 31,000.00 EUR | E29: =D29-C29 -> 1,000.00 EUR | F29: 30,000.00 EUR | G29: 31,000.00 EUR | H29: =G29-F29 -> 1,000.00 EUR
B30: Kapitál akcionárov | C30: 300,000.00 EUR | D30: 297,500.00 EUR | E30: =C30-D30 -> 2,500.00 EUR | F30: 300,000.00 EUR | G30: 297,500.00 EUR | H30: =F30-G30 -> 2,500.00 EUR
B32: Súhrn prevádzkovej metriky | C32: Skutočné hodnoty za máj | D32: Ciele na máj | E32: Mesačná odchýlka | F32: Skutočné hodnoty za tento rok | G32: Ciele na tento rok | H32: Odchýlka za tento rok | I32: Poznámky
B33: Počet chýb na 1 000 vyrobených miniaplikácií | C33: 2.3 | D33: 1.0 | E33: =D33-C33 -> -1.3 | F33: 1.5 | G33: 1.0 | H33: =F33-G33 -> 0.5 | I33: Problémy s kvalitou boli spôsobené aplikáciou nesprávnej farby na výrobnej linke 3; manažér zaviedol nové kontroly chýb.
B34: Výrobná kapacita – počet jednotiek mesačne | C34: 200,000 | D34: 220,000 | E34: =C34-D34 -> -20,000 | F34: 1,100,000 | G34: 1,150,000 | H34: =F34-G34 -> -50,000
B35: Počet dní nevyrovnaných pohľadávok | C35: 35 | D35: 25 | E35: =D35-C35 -> -10 | F35: 33 | G35: 25 | H35: =G35-F35 -> -8
B36: Počet nových objednávok | C36: 19 | D36: 15 | E36: =C36-D36 -> 4 | F36: 83 | G36: 75 | H36: =F36-G36 -> 8
B38: Konkurenčný súhrn | C38: Profil spoločnosti | D38: Konkurent 1 | E38: Konkurent 2 | F38: Konkurent 3 | G38: Konkurent 4 | H38: Iné | I38: Poznámky
B39: Podiel na trhu | C39: 20.00% | D39: 25.00% | E39: 15.00% | F39: 5.00% | G39: 15.00% | H39: 20.00% | I39: Podiel na trhu zvýšil v dôsledku silného predaja nových produktov.
B40: Tržby (za tento rok) | C40: =F6 -> 6,200,000.00 EUR | D40: 7,000,000.00 EUR | E40: 4,000,000.00 EUR | F40: 1,500,000.00 EUR | G40: 4,000,000.00 EUR | H40: 6,000,000.00 EUR
B41: Uvedenia nových produktov (za tento rok) | C41: 900,000.00 EUR | D41: 500,000.00 EUR | E41: 0.00 EUR | F41: 100,000.00 EUR | G41: 500,000.00 EUR | H41: 0.00 EUR
B42: Počet predajcov v teréne (odhadovaný) | C42: 15 | D42: 20 | E42: 15 | F42: 10 | G42: 15 | H42: NEDOSTUPNÝ

Sheet GRAF ZISKOV A STRÁT
B2: GRAF ZISKOV A STRÁT | I2: ='SÚHRN ROZPOČTU'!I2 -> 2019
B3: ='SÚHRN ROZPOČTU'!B3 -> Názov spoločnosti
B5: V tejto bunke je pruhový graf zobrazujúci skutočné hodnoty a ciele na mesiac a rok.

Sheet GRAF SÚVAHY
B2: SÚHRNNÝ SÚVAHOVÝ GRAF | I2: ='SÚHRN ROZPOČTU'!I2 -> 2019
B3: ='SÚHRN ROZPOČTU'!B3 -> Názov spoločnosti
B5: V tejto bunke je stĺpcový graf zobrazujúci mesačné skutočné hodnoty a ciele.
